bitfinex-derivatives/quotes_BNBF0:USTF0_20250603
["timestamp","ask_amount","ask_price","bid_price","bid_amount"]
[1748966873329,1.26603163,667.29,667.22,0.2997512]
[1748966874423,2.23234698,667.42,667.22,0.2997512]
[1748966875429,5.18751366,668.15,667.23,0.63331978]
[1748966875430,2.23234698,667.44,667.23,0.63331978]
[1748966875730,2.23234698,667.44,667.24,0.29974222]
[1748966876230,2.23234698,667.5,667.35,0.47624512]
[1748966876432,2.23234698,667.51,667.35,0.47624512]
[1748966877235,2.23234698,667.5,667.35,0.47624512]
[1748966878034,2.23234698,667.5,667.24,0.29974222]
[1748966878035,2.23234698,667.52,667.31,0.47624512]
[1748966878235,2.23234698,667.52,667.32,0.29970628]
[1748966878434,2.23234698,667.52,667.32,0.7759514]
[1748966879335,2.23234698,667.54,667.32,0.29970628]
[1748966879530,2.23234698,667.55,667.32,0.29970628]
[1748966880531,2.23234698,667.56,667.32,0.29970628]
[1748966881436,2.23234698,667.58,667.32,0.29970628]
[1748966881635,2.23234698,667.57,667.32,0.29970628]
[1748966882632,2.23234698,667.55,667.32,0.29970628]
[1748966883540,2.23234698,667.5,667.32,0.29970628]
[1748966884139,3.7053669,668.13,667.32,0.29970628]
[1748966884140,2.23234698,667.52,667.32,0.29970628]
[1748966884934,2.23234698,667.6,667.32,0.29970628]
[1748966885340,2.23234698,667.59,667.32,0.29970628]
[1748966885540,2.23234698,667.57,667.32,0.29970628]
[1748966885741,2.23234698,667.58,667.32,0.29970628]
[1748966885937,2.23234698,667.57,667.32,0.29970628]
[1748966886143,2.23234698,667.58,667.32,0.29970628]
[1748966886938,3.7053669,668.31,667.32,0.29970628]
[1748966886939,2.23234698,667.59,667.32,0.29970628]
[1748966887741,2.23234698,667.58,667.32,0.29970628]
[1748966888346,2.23234698,667.62,667.32,0.29970628]
[1748966890443,2.23234698,667.63,667.32,0.29970628]
[1748966890845,5.18751366,668.77,667.32,0.29970628]
[1748966890846,2.23234698,667.62,667.32,0.29970628]
[1748966891548,2.23234698,667.54,667.32,0.29970628]
[1748966893041,2.23234698,667.53,667.32,0.29970628]
[1748966893240,2.23234698,667.54,667.32,0.29970628]
[1748966893446,2.23234698,667.55,667.32,0.29970628]
[1748966894644,2.23234698,667.54,667.32,0.29970628]
[1748966894843,2.23234698,667.55,667.32,0.29970628]
[1748966895748,2.23234698,667.52,667.32,0.29970628]
[1748966895942,2.23234698,667.51,667.32,0.29970628]
[1748966896350,2.23234698,667.4,667.32,0.29970628]
[1748966896546,2.23234698,667.38,667.32,0.29970628]
[1748966896847,2.23234698,667.36,667.32,0.29970628]
[1748966897048,2.23234698,667.37,667.32,0.29970628]
[1748966897248,2.23234698,667.35,667.32,0.29970628]
[1748966898548,2.23234698,667.33,667.32,0.29970628]
[1748966898745,3.7053669,667.93,667.32,0.29970628]
[1748966898943,3.7053669,667.85,667.32,0.29970628]
[1748966899450,3.7053669,667.88,667.32,0.29970628]
[1748966901047,2.23336174,667.37,667.32,0.29970628]
[1748966901247,2.23336174,667.38,667.32,0.29970628]
[1748966901449,2.23336174,667.37,667.32,0.29970628]
[1748966902149,2.23336174,667.38,667.32,0.29970628]
[1748966902645,2.23336174,667.37,667.32,0.29970628]
[1748966902850,2.23336174,667.38,667.32,0.29970628]
[1748966903444,2.23336174,667.37,667.32,0.29970628]
[1748966906148,2.23336174,667.35,667.32,0.29970628]
[1748966906549,2.23336174,667.36,667.32,0.29970628]
[1748966908153,3.7053669,667.88,667.32,0.29970628]
[1748966908652,3.7053669,667.93,667.32,0.29970628]
[1748966909149,3.7053669,667.9,667.32,0.29970628]
[1748966909554,3.7053669,667.89,667.32,0.29970628]
[1748966910049,3.7053669,667.88,667.32,0.29970628]
[1748966910249,3.7053669,667.88,666.87,0.47624512]
[1748966910452,1.48803299,667.08,666.87,0.47624512]
[1748966910649,1.48803299,667.08,666.88,0.29990403]
[1748966911553,1.48803299,667.0,666.88,0.29990403]
[1748966911751,1.48803299,666.99,666.88,0.29990403]
[1748966912256,1.26509299,666.99,666.88,0.29990403]
[1748966913150,2.23204949,667.12,666.88,0.29990403]
[1748966913450,3.7053669,667.59,667.06,0.47541879]
[1748966913451,2.23204949,667.13,667.06,0.47541879]
[1748966913655,2.23204949,667.12,667.06,0.47541879]
[1748966914251,2.23204949,667.13,667.05,0.47541879]
[1748966914452,2.23204949,667.14,667.05,0.47541879]
[1748966914652,2.23204949,667.13,667.05,0.47541879]
[1748966915050,2.23204949,667.13,667.06,0.47541879]
[1748966915355,2.23204949,667.14,667.04,0.47541879]
[1748966915555,2.23204949,667.13,667.04,0.47541879]
[1748966915952,2.23204949,667.12,667.04,0.47541879]
[1748966916155,2.23204949,667.13,666.96,0.47541879]
[1748966916355,2.23204949,667.12,666.93,0.47541879]
[1748966916856,2.23204949,667.12,666.88,0.29990403]
[1748966916857,2.23204949,667.11,666.95,0.47541879]
[1748966917258,2.23204949,667.12,666.9,0.47541879]
[1748966917758,2.23204949,667.13,666.91,0.47541879]
[1748966917957,2.23204949,667.12,666.91,0.47541879]
[1748966918153,2.23204949,667.12,666.89,0.47541879]
[1748966918355,2.23204949,667.13,666.89,0.47541879]
[1748966919861,2.23204949,667.13,666.97,0.47541879]
[1748966920459,2.23204949,667.11,666.97,0.47541879]
[1748966920759,2.23204949,667.11,666.88,0.29990403]
[1748966921360,3.7053669,667.6,666.88,0.29990403]
[1748966923059,2.22697651,667.43,666.88,0.29990403]
[1748966924363,3.7053669,667.6,666.88,0.29990403]
[1748966924963,5.18751366,668.63,666.88,0.29990403]
[1748966925165,0.29912804,668.61,666.88,0.29990403]
[1748966928774,2.22490814,667.35,666.88,0.29990403]
[1748966929066,2.22490814,667.23,666.88,0.29990403]
[1748966929362,2.22490814,667.26,666.88,0.29990403]
[1748966929564,2.22490814,667.27,666.88,0.29990403]
[1748966929768,2.22490814,667.26,666.88,0.29990403]
[1748966930268,2.22490814,667.27,666.88,0.29990403]
[1748966930469,2.22490814,667.25,666.88,0.29990403]
[1748966930669,2.22490814,667.24,666.88,0.29990403]
[1748966931170,2.22490814,667.25,666.88,0.29990403]
[1748966931671,2.22490814,667.22,666.88,0.29990403]
[1748966933366,2.22490814,667.23,666.88,0.29990403]
[1748966933670,2.22490814,667.23,667.15,0.4757675]
[1748966934269,2.22490814,667.23,667.16,0.4757675]
[1748966935170,2.22490814,667.23,667.17,0.4757675]
[1748966935371,2.22490814,667.22,667.18,0.4757675]
[1748966935567,2.22490814,667.22,667.17,0.4757675]
[1748966936165,2.22490814,667.22,667.18,0.4757675]
[1748966936569,2.22490814,667.23,667.18,0.4757675]
[1748966936966,2.22490814,667.23,667.17,0.4757675]
[1748966937167,2.22490814,667.23,667.19,0.4757675]
[1748966937374,2.22490814,667.24,667.16,0.4757675]
[1748966937972,2.22490814,667.27,667.05,0.4757675]
[1748966938172,2.22490814,667.27,667.07,0.4757675]
[1748966938672,2.22490814,667.26,667.05,0.4757675]
[1748966938869,2.22490814,667.25,667.05,0.4757675]
[1748966939073,2.22490814,667.25,667.06,0.4757675]
[1748966939274,2.22490814,667.23,667.13,0.4757675]
[1748966939475,2.22490814,667.22,667.12,0.4757675]
[1748966939674,2.22490814,667.34,666.88,0.77567153]
[1748966939974,2.22490814,667.34,666.88,0.29990403]
[1748966940375,2.22490814,667.34,666.88,0.77567153]
[1748966940970,2.22490814,667.33,666.89,0.4757675]
[1748966941170,2.22490814,667.33,666.91,0.4757675]
[1748966941372,2.22490814,667.33,666.9,0.4757675]
[1748966942178,1.48255186,667.13,666.9,0.4757675]
[1748966942377,1.48255186,667.14,666.91,0.4757675]
[1748966943179,1.48255186,667.13,666.94,0.4757675]
[1748966943373,1.48255186,667.11,666.97,0.4757675]
[1748966943576,2.22490814,667.09,667.07,0.4757675]
[1748966943970,3.70818024,667.54,666.99,0.4757675]
[1748966944176,2.22386154,667.06,666.95,0.4757675]
[1748966944373,2.22386154,667.06,666.96,0.4757675]
[1748966944577,2.22386154,667.07,666.96,0.4757675]
[1748966944774,2.22386154,667.04,666.94,0.4757675]
[1748966944977,3.70818024,667.53,666.94,0.4757675]
[1748966944978,2.22386154,667.07,666.94,0.4757675]
[1748966945279,2.22386154,667.07,666.96,0.4757675]
[1748966945476,2.22386154,667.06,666.95,0.4757675]
[1748966945678,2.22386154,667.07,666.95,0.4757675]
[1748966946280,2.22386154,667.07,666.94,0.4757675]
[1748966947075,2.22386154,667.07,666.93,0.4757675]
[1748966947475,2.22386154,667.07,666.94,0.4757675]
[1748966948182,2.22386154,667.1,666.88,0.29990403]
[1748966948377,2.22386154,667.3,666.89,0.47691942]
[1748966948975,2.22386154,667.3,666.88,0.29990403]
[1748966948976,2.22386154,667.37,666.88,0.29990403]
[1748966949178,2.22386154,667.4,666.88,0.29990403]
[1748966949377,2.22386154,667.42,666.88,0.29990403]
[1748966949582,2.22386154,667.43,666.88,0.29990403]
[1748966950383,2.22386154,667.45,666.88,0.29990403]
[1748966951082,2.22386154,667.44,666.88,0.29990403]
[1748966951476,2.22386154,667.39,666.9,0.47691942]
[1748966952289,2.22386154,667.34,666.94,0.47691942]
[1748966952483,2.22386154,667.33,666.93,0.47691942]
[1748966953180,2.22386154,667.32,666.9,0.47691942]
[1748966953382,2.22386154,667.33,666.9,0.47691942]
[1748966953881,2.22386154,667.35,666.88,0.29990403]
[1748966954087,2.22386154,667.34,666.88,0.29990403]
[1748966955281,2.22386154,667.25,667.03,0.47691942]
[1748966955484,2.22386154,667.25,666.88,0.29990403]
[1748966955485,2.22386154,667.35,666.92,0.47691942]
[1748966955683,2.22386154,667.35,666.93,0.77680096]
[1748966955885,2.22386154,667.35,666.94,0.77679647]
[1748966956386,2.22386154,667.33,666.94,0.29987705]
[1748966957684,2.22386154,667.32,666.94,0.29987705]
[1748966957988,2.22386154,667.31,666.94,0.29987705]
[1748966958186,2.22386154,667.3,666.94,0.29987705]
[1748966959188,2.22386154,667.32,666.94,0.29987705]
[1748966960092,3.70818024,668.04,666.94,0.29987705]
[1748966960093,2.22386154,667.33,666.94,0.29987705]
[1748966960288,2.22386154,667.32,666.94,0.29987705]
[1748966963091,2.22386154,667.31,666.94,0.29987705]
[1748966963393,2.22386154,667.3,666.94,0.29987705]
[1748966963988,2.22386154,667.31,666.94,0.29987705]
[1748966965193,2.22386154,667.23,666.94,0.29987705]
[1748966965493,2.22386154,667.23,666.96,0.47691942]
[1748966965794,2.22386154,667.23,666.97,0.77678298]
[1748966965990,2.22386154,667.21,667.01,0.47691942]
[1748966966191,2.22386154,667.2,667.02,0.29984108]
[1748966967294,2.22386154,667.19,667.02,0.29984108]
[1748966967495,2.22386154,667.21,667.02,0.29984108]
[1748966967691,2.22386154,667.2,667.02,0.29984108]
[1748966968093,2.22386154,667.19,667.02,0.29984108]
[1748966968293,2.22386154,667.24,667.02,0.29984108]
[1748966969097,2.22386154,667.22,667.02,0.29984108]
[1748966969693,2.22386154,667.2,667.02,0.29984108]
[1748966972195,2.22386154,667.22,667.02,0.29984108]
[1748966972499,2.22386154,667.25,667.05,0.47691942]
[1748966973303,2.22386154,667.26,667.06,0.47691942]
[1748966973700,1.48961207,667.11,667.05,0.47691942]
[1748966974503,1.48961207,667.12,667.05,0.47691942]
[1748966974899,1.48961207,667.11,667.05,0.47691942]
[1748966975305,1.48961207,667.11,667.06,0.47691942]
[1748966976306,1.48961207,667.11,667.05,0.47691942]
[1748966977106,1.48961207,667.12,667.02,0.7767605]
[1748966977306,1.48961207,667.13,667.02,0.7767605]
[1748966977508,1.48961207,667.12,667.04,0.47691942]
[1748966977706,1.48961207,667.12,667.03,0.47691942]
[1748966978104,1.48961207,667.07,667.02,0.29984108]
[1748966978501,1.48961207,667.09,667.02,0.29984108]
[1748966979307,1.48961207,667.08,667.02,0.29984108]
[1748966980508,1.48961207,667.09,667.02,0.29984108]
[1748966981008,1.48961207,667.08,667.02,0.29984108]
[1748966981508,1.48961207,667.09,667.02,0.29984108]
[1748966981808,1.48961207,667.07,667.02,0.29984108]
[1748966982210,1.48961207,667.06,667.02,0.29984108]
[1748966982510,1.48961207,667.08,667.02,0.29984108]
[1748966984713,1.48961207,667.07,667.02,0.29984108]
[1748966985113,1.48961207,667.08,667.02,0.29984108]
[1748966987109,1.48961207,667.05,667.02,0.29984108]
[1748966987317,1.26669722,667.05,667.02,0.29984108]
[1748966987609,2.22386154,667.19,667.02,0.29984108]
[1748966988315,2.22386154,667.33,667.07,0.47686034]
[1748966988517,2.22386154,667.32,667.08,0.47686034]
[1748966989415,2.22386154,667.32,667.09,0.47686034]
[1748966989816,2.22386154,667.32,667.08,0.47686034]
[1748966991520,2.22386154,667.33,667.08,0.47686034]
[1748966992615,2.22386154,667.41,667.02,0.29984108]
[1748966993320,2.22386154,667.4,667.02,0.29984108]
[1748966995324,2.22386154,667.41,667.02,0.29984108]
[1748966996319,2.22386154,667.4,667.02,0.29984108]
[1748966996723,2.22386154,667.39,667.02,0.29984108]
[1748966996922,3.70818024,668.19,667.02,0.29984108]
[1748966996923,2.22386154,667.24,667.02,0.29984108]
[1748966997125,2.22386154,667.22,667.02,0.29984108]
[1748966997721,2.22386154,667.21,667.02,0.29984108]
[1748966997927,2.22386154,667.23,667.02,0.29984108]
[1748966998118,2.22386154,667.24,667.02,0.29984108]
[1748966998323,2.22386154,667.23,667.02,0.29984108]
[1748966998521,3.70818024,667.9,667.02,0.29984108]
[1748966998522,2.22386154,667.2,667.02,0.29984108]
[1748966998926,2.22386154,667.18,667.02,0.29984108]
[1748966999125,2.22386154,667.17,667.02,0.29984108]
[1748966999827,2.22386154,667.16,667.02,0.29984108]
[1748967000029,2.22386154,667.15,667.02,0.29984108]
[1748967001830,2.22386154,667.16,667.02,0.29984108]
[1748967002232,2.22386154,667.14,667.02,0.29984108]
[1748967002433,2.22386154,667.1,667.07,0.47686034]
[1748967002627,2.22386154,667.09,667.05,0.47686034]
[1748967002831,3.70818024,667.63,667.08,0.47686034]
[1748967003032,3.70818024,667.61,667.08,0.47686034]
[1748967003829,2.23206056,667.1,667.08,0.47686034]
[1748967004136,2.23209373,667.1,667.02,0.29984108]
[1748967004333,2.23209373,667.15,667.03,0.47661758]
[1748967004530,3.70818024,667.73,667.06,0.47661758]
[1748967004531,2.23209373,667.14,667.06,0.47661758]
[1748967004731,2.23209373,667.15,667.07,0.47661758]
[1748967004931,2.23209373,667.17,667.06,0.47661758]
[1748967005133,2.23209373,667.17,667.05,0.47661758]
[1748967005336,3.70818024,667.71,667.02,0.29984108]
[1748967005337,2.23209373,667.19,667.04,0.47661758]
[1748967005934,2.23209373,667.19,667.13,0.47661758]
[1748967006135,2.23209373,667.18,667.13,0.47661758]
[1748967006434,5.18751366,668.06,667.02,0.29984108]
[1748967006435,2.23209373,667.14,667.02,0.29984108]
[1748967007234,2.23209373,667.13,667.02,0.29984108]
[1748967007430,2.23209373,667.16,667.02,0.29984108]
[1748967007934,2.23209373,667.13,667.07,0.4757675]
[1748967008335,2.23209373,667.13,667.08,0.4757675]
[1748967008836,2.23209373,667.14,667.08,0.4757675]
[1748967009430,2.23209373,667.14,667.09,0.4757675]
[1748967009633,2.23209373,667.24,667.02,0.29984108]
[1748967010035,2.23209373,667.25,667.02,0.29984108]
[1748967010531,2.23209373,667.34,667.19,0.47638474]
[1748967010838,2.23209373,667.45,667.24,0.47638474]
[1748967011438,2.23209373,667.47,667.22,0.47638474]
[1748967011638,2.23209373,667.48,667.23,0.47638474]
[1748967012339,2.23209373,667.49,667.2,0.47638474]
[1748967013334,2.23209373,667.48,667.23,0.47638474]
[1748967013532,3.70818024,668.08,667.02,0.29984108]
[1748967013533,2.23209373,667.49,667.21,0.47638474]
[1748967014137,2.23209373,667.5,667.22,0.47638474]
[1748967014337,2.23209373,667.51,667.2,0.47638474]
[1748967015238,2.23209373,667.52,667.2,0.47638474]
[1748967015433,2.23209373,667.52,667.18,0.47638474]
[1748967016233,2.23209373,667.51,667.18,0.47638474]
[1748967016436,2.23209373,667.52,667.16,0.47638474]
[1748967016634,2.23209373,667.52,667.15,0.47638474]
[1748967016839,2.23209373,667.52,667.16,0.47638474]
[1748967017238,1.4869149,667.38,667.16,0.47638474]
[1748967017432,1.4869149,667.38,667.15,0.47638474]
[1748967017638,1.4869149,667.38,667.15,0.77616739]
[1748967017938,1.4869149,667.36,667.16,0.29977816]
[1748967018139,1.4869149,667.53,667.16,0.29977816]
[1748967018338,1.4869149,667.54,667.16,0.29977816]
[1748967018536,1.4869149,667.55,667.16,0.29977816]
[1748967018738,1.4869149,667.54,667.16,0.29977816]
[1748967018938,3.70818024,668.55,667.16,0.29977816]
[1748967018939,1.4869149,667.55,667.16,0.29977816]
[1748967019140,1.4869149,667.58,667.16,0.29977816]
[1748967019333,0.29912804,668.61,667.16,0.29977816]
[1748967019334,1.4869149,667.6,667.16,0.29977816]
[1748967020437,1.4869149,667.61,667.16,0.29977816]
[1748967020940,1.4869149,667.63,667.16,0.29977816]
[1748967021235,1.4869149,667.64,667.16,0.29977816]
[1748967021539,0.29912804,668.61,667.16,0.29977816]
[1748967021540,1.4869149,667.63,667.16,0.29977816]
[1748967021735,1.4869149,667.64,667.16,0.29977816]
[1748967022240,1.4869149,667.66,667.16,0.29977816]
[1748967022439,1.4869149,667.55,667.22,0.47638474]
[1748967022636,2.23209373,667.69,667.22,0.47638474]
[1748967022637,1.4869149,667.53,667.22,0.2997512]
[1748967022940,1.4869149,667.57,667.22,0.2997512]
[1748967023343,1.4869149,667.58,667.22,0.2997512]
[1748967024344,1.4869149,667.59,667.22,0.2997512]
[1748967024738,1.4869149,667.61,667.22,0.2997512]
[1748967025139,1.4869149,667.59,667.22,0.2997512]
[1748967025343,1.4869149,667.6,667.22,0.2997512]
[1748967025745,1.4869149,667.59,667.22,0.2997512]
[1748967025940,1.4869149,667.6,667.22,0.2997512]
[1748967026140,1.4869149,667.59,667.22,0.2997512]
[1748967026343,1.4869149,667.6,667.22,0.2997512]
[1748967026942,1.4869149,667.61,667.22,0.2997512]
[1748967027342,1.4869149,667.61,667.22,0.77613594]
[1748967028140,1.4869149,667.62,667.22,0.77613594]
[1748967028343,1.4869149,667.62,667.23,0.47638474]
[1748967028545,1.4869149,667.62,667.24,0.29974222]
[1748967029245,1.4869149,667.65,667.25,0.47638474]
[1748967029445,1.4869149,667.65,667.27,0.47638474]
[1748967029647,1.4869149,667.65,667.28,0.29972425]
[1748967029948,1.4869149,667.73,667.28,0.29972425]
[1748967030148,1.4869149,667.75,667.28,0.29972425]
[1748967030346,1.4869149,667.77,667.28,0.29972425]
[1748967030746,1.4869149,667.76,667.29,0.47638474]
[1748967031046,1.4869149,667.76,667.28,0.29972425]
[1748967031047,1.4869149,667.77,667.37,0.47638474]
[1748967031246,1.4869149,667.71,667.62,0.47638474]
[1748967031447,1.4869149,667.78,667.66,0.47638474]
[1748967031646,1.4869149,667.77,667.65,0.47638474]
[1748967032349,1.4869149,667.78,667.66,0.47638474]
[1748967032547,1.4869149,667.79,667.7,0.47638474]
[1748967032944,1.4869149,667.8,667.7,0.47638474]
[1748967033144,1.4869149,667.79,667.69,0.47638474]
[1748967033349,1.4869149,667.81,667.72,0.47638474]
[1748967033550,1.4869149,667.8,667.75,0.47638474]
[1748967034044,1.4869149,667.81,667.74,0.47638474]
[1748967034350,1.4869149,667.82,667.76,0.47638474]
[1748967034545,1.4869149,667.81,667.4,0.4757675]
[1748967034753,1.4869149,667.82,667.44,0.4757675]
[1748967034946,1.4869149,667.82,667.45,0.29964791]
[1748967035349,1.4869149,667.83,667.46,0.4757675]
[1748967035545,1.4869149,667.83,667.47,0.29963893]
[1748967036350,1.4869149,667.84,667.49,0.4757675]
[1748967036552,1.4869149,667.83,667.56,0.4757675]
[1748967036748,1.4869149,667.83,667.57,0.29959405]
[1748967037052,1.4869149,667.83,667.58,0.4757675]
[1748967037249,1.4869149,667.84,667.58,0.4757675]
[1748967037447,1.4869149,667.84,667.61,0.4757675]
[1748967038051,1.4869149,667.84,667.6,0.4757675]
[1748967038454,1.4869149,667.84,667.57,0.29959405]
[1748967038455,1.4869149,667.84,667.64,0.4757675]
[1748967038655,1.4869149,667.84,667.57,0.29959405]
[1748967038656,1.4869149,667.81,667.62,0.4757675]
[1748967039252,1.4869149,667.81,667.63,0.4757675]
[1748967039557,1.4869149,667.81,667.66,0.4757675]
[1748967040152,1.4869149,667.83,667.62,0.4757675]
[1748967040358,1.4869149,667.83,667.65,0.4757675]
[1748967040555,1.4869149,667.83,667.66,0.4757675]
[1748967040754,1.4869149,667.83,667.67,0.4757675]
[1748967040954,1.4869149,667.83,667.66,0.4757675]
[1748967041158,1.4869149,667.8,667.57,0.29959405]
[1748967041357,1.4869149,667.8,667.59,0.4757675]
[1748967041558,1.4869149,667.82,667.61,0.4757675]
[1748967041753,1.4869149,667.82,667.57,0.29959405]
[1748967041958,1.4869149,667.84,667.57,0.29959405]
[1748967042158,1.4869149,667.84,667.82,0.47394151]
[1748967042357,1.4869149,667.84,667.57,0.29959405]
[1748967042957,1.4869149,667.85,667.83,0.47419996]
[1748967043355,1.4869149,667.85,667.57,0.29959405]
[1748967043956,1.4869149,667.84,667.57,0.29959405]
[1748967044661,1.4869149,667.85,667.57,0.29959405]
[1748967044958,1.4869149,667.86,667.57,0.29959405]
[1748967047962,1.4869149,667.85,667.57,0.29959405]
[1748967049158,1.4869149,667.82,667.57,0.29959405]
[1748967049361,1.4869149,667.75,667.57,0.29959405]
[1748967050060,1.4869149,667.73,667.57,0.29959405]
[1748967050361,1.4869149,667.73,667.61,0.4757675]
[1748967050561,1.4869149,667.73,667.6,0.4757675]
[1748967050760,1.4869149,667.73,667.61,0.4757675]
[1748967051460,1.4869149,667.72,667.62,0.4757675]
[1748967051764,1.4869149,667.75,667.57,0.29959405]
[1748967052862,1.4869149,667.77,667.57,0.29959405]
[1748967053063,1.4869149,667.78,667.57,0.29959405]
[1748967053459,1.4869149,667.77,667.57,0.29959405]
[1748967054366,1.4869149,667.75,667.57,0.29959405]
[1748967055465,3.70818024,668.53,667.57,0.29959405]
[1748967055466,1.4869149,667.74,667.57,0.29959405]
[1748967056464,1.4869149,667.73,667.57,0.29959405]
[1748967056663,1.4869149,667.72,667.57,0.29959405]
[1748967058267,1.4869149,667.71,667.57,0.29959405]
[1748967058467,1.4869149,667.72,667.57,0.29959405]
[1748967058668,1.4869149,667.7,667.57,0.29959405]
[1748967059462,1.4869149,667.68,667.57,0.29959405]
[1748967060368,1.4869149,667.65,667.57,0.29959405]
[1748967061173,1.4869149,667.61,667.57,0.29959405]
[1748967061569,1.26411995,667.61,667.57,0.29959405]
[1748967061969,2.23209373,667.72,667.57,0.29959405]
[1748967062970,2.23209373,667.69,667.57,0.29959405]
[1748967063171,2.23209373,667.68,667.57,0.29959405]
[1748967063373,2.23209373,667.66,667.57,0.29959405]
[1748967063571,2.23209373,667.65,667.57,0.29959405]
[1748967063771,2.23209373,667.66,667.57,0.29959405]
[1748967064273,2.23209373,667.72,667.65,0.47594387]
[1748967064471,2.23209373,667.71,667.66,0.47594387]
[1748967064670,2.23209373,667.71,667.65,0.47594387]
[1748967065268,2.23209373,667.7,667.64,0.47594387]
[1748967065572,2.23209373,667.69,667.59,0.47594387]
[1748967066169,2.23209373,667.68,667.58,0.47594387]
[1748967066372,3.70818024,668.23,667.57,0.29959405]
[1748967066373,2.23209373,667.67,667.57,0.29959405]
[1748967066774,3.70818024,668.21,667.57,0.29959405]
[1748967066775,2.23209373,667.66,667.57,0.29959405]
[1748967067373,2.23209373,667.64,667.57,0.29959405]
[1748967067573,2.23209373,667.76,667.57,0.29959405]
[1748967068275,2.23209373,667.77,667.57,0.29959405]
[1748967068476,2.23209373,667.76,667.57,0.29959405]
[1748967069479,2.23209373,667.74,667.57,0.29959405]
[1748967069874,2.23209373,667.75,667.57,0.29959405]
[1748967070076,2.23209373,667.74,667.57,0.29959405]
[1748967070274,3.70818024,668.43,667.57,0.29959405]
[1748967070275,2.23209373,667.73,667.57,0.29959405]
[1748967070474,2.23209373,667.74,667.57,0.29959405]
[1748967071281,2.23209373,667.73,667.57,0.29959405]
[1748967071682,2.23209373,667.74,667.57,0.29959405]
[1748967072379,2.23209373,667.73,667.57,0.29959405]
[1748967074181,2.23209373,667.71,667.57,0.29959405]
[1748967075179,2.23209373,667.7,667.57,0.29959405]
[1748967076083,2.23209373,667.69,667.57,0.29959405]
[1748967077581,5.18751366,668.71,667.57,0.29959405]
[1748967077781,0.2607308,668.98,667.57,0.29959405]
[1748967077985,0.29896706,668.97,667.57,0.29959405]
[1748967078286,0.29896706,668.97,667.61,0.47681191]
[1748967078287,3.72155424,668.11,667.61,0.47681191]
[1748967079289,3.72155424,668.1,667.57,0.29959405]
[1748967079587,2.23307033,667.59,667.57,0.29959405]
[1748967080087,2.23307033,667.58,667.57,0.29959405]
[1748967080290,3.72155424,668.2,667.57,0.29959405]
[1748967080487,3.72155424,668.17,667.57,0.29959405]
[1748967081086,3.72155424,668.14,667.57,0.29959405]
[1748967081289,2.23326411,667.59,667.57,0.29959405]
[1748967081482,5.21017594,668.42,667.57,0.29959405]
[1748967081483,2.23326411,667.62,667.57,0.29959405]
[1748967081888,2.23326411,667.61,667.57,0.29959405]
[1748967082289,2.23326411,667.62,667.57,0.29959405]
[1748967082687,2.23326411,667.61,667.57,0.29959405]
[1748967083286,2.23326411,667.59,667.57,0.29959405]
[1748967084384,3.72155424,668.15,667.57,0.29959405]
[1748967084385,2.23326411,667.63,667.57,0.29959405]
[1748967085288,2.23326411,667.62,667.57,0.29959405]
[1748967085990,2.23326411,667.63,667.57,0.29959405]
[1748967086290,2.23326411,667.62,667.57,0.29959405]
[1748967086891,2.23326411,667.65,667.57,0.29959405]
[1748967087087,2.23326411,667.64,667.57,0.29959405]
[1748967091091,0.29896706,668.97,667.57,0.29959405]
[1748967091092,2.23326411,667.63,667.57,0.29959405]
[1748967091293,2.23326411,667.62,667.57,0.29959405]
[1748967091591,2.23326411,667.61,667.57,0.29959405]
[1748967092495,2.23326411,667.6,667.57,0.29959405]
[1748967093290,2.23326411,667.59,667.57,0.29959405]
[1748967094296,3.72155424,668.14,667.58,0.47719647]
[1748967094796,3.72155424,668.14,667.57,0.77679052]
[1748967094995,3.72155424,668.14,667.57,0.29959405]
[1748967095187,3.72155424,668.12,667.57,0.29959405]
[1748967095589,3.72155424,668.11,667.57,0.29959405]
[1748967095989,3.72155424,668.11,667.58,0.47719647]
[1748967096194,3.72155424,668.08,667.58,0.47719647]
[1748967096493,3.72155424,668.08,667.57,0.77679052]
[1748967096695,3.72155424,668.08,667.57,0.05730576]
[1748967096994,3.72155424,668.08,667.3,0.47681191]
[1748967097195,1.4899473,667.34,667.3,0.77652718]
[1748967097494,7.44310849,668.79,667.3,0.29971527]
[1748967097495,1.4899473,667.33,667.3,0.29971527]
[1748967097692,2.23492095,667.46,667.3,0.29971527]
[1748967097892,2.23492095,667.45,667.33,0.47712604]
[1748967098090,2.23492095,667.44,667.31,0.47712604]
[1748967098397,2.23492095,667.42,667.3,0.29971527]
[1748967098595,2.23492095,667.41,667.3,0.29971527]
[1748967098793,2.23492095,667.42,667.3,0.29971527]
[1748967099695,2.23492095,667.43,667.3,0.29971527]
[1748967099894,2.23492095,667.41,667.3,0.29971527]
[1748967100094,2.23492095,667.37,667.3,0.29971527]
[1748967100398,2.23492095,667.36,667.3,0.29971527]
[1748967100596,2.23492095,667.34,667.3,0.29971527]
[1748967101190,2.23492095,667.35,667.3,0.29971527]
[1748967101791,2.23492095,667.33,667.3,0.29971527]
[1748967102599,2.23492095,667.32,667.3,0.29971527]
[1748967103902,2.23492095,667.31,667.3,0.29971527]
[1748967104299,2.23492095,667.32,667.3,0.29971527]
[1748967104696,2.23492095,667.34,667.3,0.29971527]
[1748967105400,2.23492095,667.35,667.3,0.29971527]
[1748967107397,2.23492095,667.37,667.3,0.29971527]